fUSD/lending_fUSD_20250416
["ID","MTS","AMOUNT","RATE_DAILY","PERIOD"]
[358143127,1744765918058,-214.54507832,0.00052303,30]
[358143128,1744765918087,-702.96,0.00052328,120]
[358143129,1744765918118,-1281.64,0.00052328,30]
[358143130,1744765918148,-2533.53,0.00052328,90]
[358143131,1744765918178,-511.55033722,0.00052328,120]
[358143132,1744765918209,-563.05,0.00052328,120]
[358143133,1744765918239,-500.0,0.00052328,120]
[358143134,1744765918269,-627.32,0.00052328,120]
[358143135,1744765918300,-527.64594338,0.00052328,120]
[358143136,1744765918331,-500.0,0.00052328,120]
[358143137,1744765918378,-500.0,0.00052328,120]
[358143138,1744765918411,-852.17,0.00052328,120]
[358143139,1744765918444,-818.1,0.00052328,120]
[358143140,1744765918477,-1000.0,0.00052328,120]
[358143141,1744765918510,-500.0,0.00052328,120]
[358143142,1744765918544,-500.0,0.00052328,120]
[358143143,1744765918576,-2769.0,0.00052328,35]
[358143144,1744765918608,-1231.0,0.00052328,120]
[358143145,1744765918641,-500.0,0.00052328,120]
[358143146,1744765918675,-500.0,0.00052328,120]
[358143147,1744765918711,-500.0,0.00052328,120]
[358143148,1744765918748,-178.9,0.00052328,120]
[358143149,1744765918782,-852.23,0.00052328,120]
[358143150,1744765918814,-1034.03,0.00052328,120]
[358143151,1744765918846,-500.0,0.00052328,120]
[358143152,1744765918878,-699.07,0.00052328,120]
[358143153,1744765918910,-669.94,0.00052328,120]
[358143154,1744765918941,-500.0,0.00052328,120]
[358143155,1744765918972,-1912.27,0.00052328,120]
[358143156,1744765919003,-500.0,0.00052328,120]
[358143157,1744765919039,-899.37,0.00052328,120]
[358143158,1744765919071,-500.0,0.00052328,120]
[358143159,1744765919106,-1831.65,0.00052328,120]
[358143160,1744765919138,-500.0,0.00052328,120]
[358143161,1744765919169,-1505.73,0.00052328,120]
[358143162,1744765919201,-255.90438305,0.00052328,120]
[358143163,1744765919234,-535.1,0.00052328,120]
[358143164,1744765919265,-767.28,0.00052328,120]
[358143165,1744765919297,-687.0,0.00052328,120]
[358143166,1744765919329,-1013.49,0.00052328,120]
[358143167,1744765919361,-500.0,0.00052328,120]
[358143168,1744765919392,-1174.39,0.00052328,120]
[358143169,1744765919425,-1047.39,0.00052328,120]
[358143170,1744765919457,-826.32,0.00052328,120]
[358143171,1744765919488,-500.0,0.00052328,120]
[358143172,1744765919519,-500.0,0.00052328,120]
[358143173,1744765919551,-150.0,0.00052346,30]
[358143174,1744765919580,-1250.0,0.00052356,120]
[358143175,1744765919610,-1250.0,0.00052356,120]
[358143176,1744765919641,-1250.0,0.00052356,120]
[358143177,1744765919672,-1250.0,0.00052356,120]
[358143178,1744765919704,-1250.0,0.00052356,120]
[358143179,1744765919736,-1250.0,0.00052356,120]
[358143180,1744765919772,-1250.0,0.00052356,120]
[358143181,1744765919804,-1250.0,0.00052356,120]
[358143182,1744765919836,-1250.0,0.00052356,120]
[358143183,1744765919868,-1250.0,0.00052356,120]
[358143184,1744765919898,-1250.0,0.00052356,120]
[358143185,1744765919930,-1250.0,0.00052356,120]
[358143186,1744765919963,-1250.0,0.00052356,120]
[358143187,1744765919995,-1250.0,0.00052356,120]
[358143188,1744765920029,-1250.0,0.00052356,120]
[358143189,1744765920067,-1250.0,0.00052356,120]
[358143190,1744765920101,-1250.0,0.00052356,120]
[358143191,1744765920138,-1250.0,0.00052356,120]
[358143192,1744765920173,-1250.0,0.00052356,120]
[358143193,1744765920208,-1250.0,0.00052356,120]
[358143194,1744765920243,-1250.0,0.00052356,120]
[358143195,1744765920280,-1250.0,0.00052356,120]
[358143196,1744765920316,-1250.0,0.00052356,120]
[358143197,1744765920351,-1250.0,0.00052356,120]
[358143198,1744765920385,-305.77080733,0.00052359,30]
[358143199,1744765920420,-214.54507832,0.00052359,30]
[358143200,1744765920635,-150.0,0.00052359,30]
[358143201,1744765920668,-150.0,0.00052359,30]
[358143202,1744765920702,-150.0,0.00052404,30]
[358143203,1744765920737,-305.77080733,0.00052414,30]
[358143204,1744765920775,-214.54507832,0.00052414,30]
[358143205,1744765920810,-150.0,0.00052435,30]
[358143206,1744765920844,-150.0,0.00052462,30]
[358143207,1744765920875,-305.77080733,0.00052469,30]
[358143208,1744765920907,-214.54507832,0.00052469,30]
[358143209,1744765920942,-2000.0,0.000525,120]
[358143210,1744765920974,-150.0,0.00052511,30]
[358143211,1744765921005,-150.0,0.00052511,30]
[358143212,1744765921038,-150.0,0.00052521,30]
[358143213,1744765921076,-305.77080733,0.00052525,30]
[358143214,1744765921108,-214.54507832,0.00052525,30]
[358143215,1744765921142,-150.0,0.00052579,30]
[358143216,1744765921173,-305.77080733,0.0005258,30]
[358143217,1744765921204,-214.54507832,0.0005258,30]
[358143218,1744765921236,-150.0,0.00052587,30]
[358143219,1744765921267,-702.96,0.00052602,120]
[358143220,1744765921299,-500.0,0.00052602,120]
[358143221,1744765921330,-1281.64,0.00052602,30]
[358143222,1744765921361,-2533.53,0.00052602,90]
[358143223,1744765921393,-563.05,0.00052602,120]
[358143224,1744765921424,-500.0,0.00052602,120]
[358143225,1744765921457,-627.32,0.00052602,120]
[358143226,1744765921489,-500.0,0.00052602,120]
[358143227,1744765921522,-500.0,0.00052602,120]
[358143228,1744765921554,-852.17,0.00052602,120]
[358143229,1744765921588,-818.1,0.00052602,120]
[358143230,1744765921619,-1000.0,0.00052602,120]
[358143231,1744765921652,-500.0,0.00052602,120]
[358143232,1744765921685,-500.0,0.00052602,120]
[358143233,1744765921718,-2769.0,0.00052602,35]
[358143234,1744765921756,-1231.0,0.00052602,120]
[358143235,1744765921789,-500.0,0.00052602,120]
[358143236,1744765921821,-500.0,0.00052602,120]
[358143237,1744765921853,-500.0,0.00052602,120]
[358143238,1744765921884,-852.23,0.00052602,120]
[358143239,1744765921918,-1034.03,0.00052602,120]
[358143240,1744765921951,-500.0,0.00052602,120]
[358143241,1744765921985,-699.07,0.00052602,120]
[358143242,1744765922017,-500.0,0.00052602,120]
[358143243,1744765922048,-1912.27,0.00052602,120]
[358143244,1744765922080,-500.0,0.00052602,120]
[358143245,1744765922111,-899.37,0.00052602,120]
[358143246,1744765922144,-500.0,0.00052602,120]
[358143247,1744765922176,-1831.65,0.00052602,120]
[358143248,1744765922208,-500.0,0.00052602,120]
[358143249,1744765922239,-1505.73,0.00052602,120]
[358143250,1744765922269,-535.1,0.00052602,120]
[358143251,1744765922300,-767.28,0.00052602,120]
[358143252,1744765922331,-687.0,0.00052602,120]
[358143253,1744765922364,-1013.49,0.00052602,120]
[358143254,1744765922398,-500.0,0.00052602,120]
[358143255,1744765922428,-1174.39,0.00052602,120]
[358143256,1744765922460,-1047.39,0.00052602,120]
[358143257,1744765922491,-826.32,0.00052602,120]
[358143258,1744765922522,-500.0,0.00052602,120]
[358143259,1744765922552,-305.77080733,0.00052635,30]
[358143260,1744765922582,-214.54507832,0.00052635,30]
[358143261,1744765922612,-150.0,0.00052637,30]
[358143262,1744765922643,-150.0,0.00052663,30]
[358143263,1744765922674,-150.0,0.00052663,30]
[358143264,1744765922704,-305.77080733,0.00052691,30]
[358143265,1744765922737,-214.54507832,0.00052691,30]
[358143266,1744765922771,-150.0,0.00052696,30]
[358143267,1744765922804,-150.0,0.00052709,120]
[358143268,1744765922835,-150.0,0.00052739,30]
[358143269,1744765922868,-150.0,0.00052742,120]
[358143270,1744765922900,-305.77080733,0.00052746,30]
[358143271,1744765922934,-214.54507832,0.00052746,30]
[358143272,1744765922966,-150.0,0.00052754,30]
[358143273,1744765922997,-2110.0,0.00052794,30]
[358143274,1744765923029,-305.77080733,0.00052801,30]
[358143275,1744765923068,-214.54507832,0.00052801,30]
[358143276,1744765923102,-500.0,0.00052804,120]
[358143277,1744765923133,-150.0,0.00052812,30]
[358143278,1744765923167,-150.0,0.00052815,30]
[358143279,1744765923200,-150.0,0.00052815,30]
[358143280,1744765923235,-2200.000001,0.0005285,120]
[358143281,1744765923271,-305.77080733,0.00052857,30]
[358143282,1744765923304,-214.54507832,0.00052857,30]
[358143283,1744765923337,-150.0,0.0005287,30]
[358143284,1744765923371,-702.96,0.00052876,120]
[358143285,1744765923404,-1281.64,0.00052876,30]
[358143286,1744765923437,-2533.53,0.00052876,90]
[358143287,1744765923470,-563.05,0.00052876,120]
[358143288,1744765923504,-500.0,0.00052876,120]
[358143289,1744765923535,-627.32,0.00052876,120]
[358143290,1744765923568,-473.90718645,0.00052876,120]
[358143291,1744765923599,-500.0,0.00052876,120]
[358143292,1744765923631,-852.17,0.00052876,120]
[358143293,1744765923663,-818.1,0.00052876,120]
[358143294,1744765923696,-1000.0,0.00052876,120]
[358143295,1744765923875,-500.0,0.00052876,120]
[358143296,1744765923910,-500.0,0.00052876,120]
[358143297,1744765923943,-2769.0,0.00052876,35]
[358143298,1744765923978,-1231.0,0.00052876,120]
[358143299,1744765924011,-500.0,0.00052876,120]
[358143300,1744765924048,-500.0,0.00052876,120]
[358143301,1744765924084,-500.0,0.00052876,120]
[358143302,1744765924119,-852.23,0.00052876,120]
[358143303,1744765924153,-1034.03,0.00052876,120]
[358143304,1744765924186,-622.60767272,0.00052876,120]
[358143305,1744765924221,-699.07,0.00052876,120]
[358143306,1744765924256,-500.0,0.00052876,120]
[358143307,1744765924292,-1912.27,0.00052876,120]
[358143308,1744765924327,-899.37,0.00052876,120]
[358143309,1744765924361,-500.0,0.00052876,120]
[358143310,1744765924395,-1831.65,0.00052876,120]
[358143311,1744765924427,-500.0,0.00052876,120]
[358143312,1744765924460,-1505.73,0.00052876,120]
[358143313,1744765924493,-535.1,0.00052876,120]
[358143314,1744765924524,-767.28,0.00052876,120]
[358143315,1744765924556,-687.0,0.00052876,120]
[358143316,1744765924589,-1013.49,0.00052876,120]
[358143317,1744765924621,-500.0,0.00052876,120]
[358143318,1744765924652,-1174.39,0.00052876,120]
[358143319,1744765924686,-1047.39,0.00052876,120]
[358143320,1744765924721,-826.32,0.00052876,120]
[358143321,1744765924761,-500.0,0.00052876,120]
[358143322,1744765924795,-500.0,0.00052876,120]
[358143323,1744765924829,-150.0,0.00052891,30]
[358143324,1744765924863,-305.77080733,0.00052912,30]
[358143325,1744765924898,-214.54507832,0.00052912,30]
[358143326,1744765924936,-150.0,0.00052929,30]
[358143327,1744765924972,-500.0,0.00052931,90]
[358143328,1744765925005,-500.0,0.00052931,90]
[358143329,1744765925040,-500.0,0.00052931,90]
[358143330,1744765925074,-305.77080733,0.00052968,30]
[358143331,1744765925109,-214.54507832,0.00052968,30]
[358143332,1744765925142,-150.0,0.00052968,30]
[358143333,1744765925174,-150.0,0.00052968,30]
[358143334,1744765925206,-150.0,0.00052987,30]
[358143335,1744765925242,-1000000.0,0.00053,120]
[358143336,1744765925277,-1000000.0,0.00053,120]
[358143337,1744765925311,-959407.85711124,0.00053,120]
[358143338,1744765930175,-257.72008906,0.00051,120]
[358143339,1744765930209,-261.5045894,0.00051815,120]
[358143340,1744765930242,-3750.0,0.00052066,48]
[358143341,1744765930273,-500.0,0.00052602,120]
[358143342,1744765930305,-518.5,0.00052602,120]
[358143343,1744765930341,-40592.14288876,0.00053,120]
[358143344,1744765930380,-1000000.0,0.00053,120]
[358143345,1744765930417,-1000000.0,0.00053,120]
[358143346,1744765930454,-2000.0,0.00053,120]
[358143347,1744765930492,-1000000.0,0.00053,120]
[358143348,1744765930529,-1000000.0,0.00053,120]
[358143349,1744765930566,-1000000.0,0.00053,120]
[358143350,1744765930604,-952120.13243278,0.00053,120]
[358143351,1744765934493,-604.5742537,0.00049315,120]
[358143352,1744765934530,-500.0,0.00049315,120]
[358143353,1744765934564,-500.0,0.00049589,120]
[358143354,1744765934598,-500.0,0.00049863,120]
[358143355,1744765934631,-578.84,0.00050136,120]
[358143356,1744765934664,-537.6845,0.00052602,120]
[358143357,1744765934700,-557.5788265,0.00052602,120]
[358143358,1744765934733,-578.20924308,0.00052602,120]
[358143359,1744765934768,-599.60298507,0.00052602,120]
[358143360,1744765934800,-621.78829552,0.00052602,120]
[358143361,1744765934833,-644.79446246,0.00052602,120]
[358143362,1744765934868,-47879.86756722,0.00053,120]
[358143363,1744765934901,-1000000.0,0.00053,120]
[358143364,1744765934932,-3000.26096436,0.00053,120]
[358143365,1744765934965,-244.13646622,0.00053,108]
[358143366,1744765934996,-150.0,0.00053,30]
[358143367,1744765935027,-235.0,0.0005301,30]
[358143368,1744765935061,-236.0,0.0005301,30]
[358143369,1744765935091,-235.0,0.0005302,30]
[358143370,1744765935122,-259.0,0.0005302,30]
[358143371,1744765935152,-209.0,0.0005302,30]
[358143372,1744765935182,-209.0,0.0005302,30]
[358143373,1744765935212,-209.0,0.0005302,30]
[358143374,1744765935242,-305.77080733,0.00053023,30]
[358143375,1744765935272,-214.54507832,0.00053023,30]
[358143376,1744765935301,-150.0,0.00053044,30]
[358143377,1744765935331,-150.0,0.00053045,30]
[358143378,1744765935360,-305.77080733,0.00053078,30]
[358143379,1744765935389,-214.54507832,0.00053078,30]
[358143380,1744765935419,-150.0,0.00053104,30]
[358143381,1744765935448,-150.0,0.0005312,30]
[358143382,1744765935476,-150.0,0.0005312,30]
[358143383,1744765935505,-305.77080733,0.00053134,30]
[358143384,1744765935537,-214.54507832,0.00053134,30]
[358143385,1744765935566,-702.96,0.0005315,120]
[358143386,1744765935594,-1281.64,0.0005315,30]
[358143387,1744765935623,-2533.53,0.0005315,90]
[358143388,1744765935652,-563.05,0.0005315,120]
[358143389,1744765935680,-500.0,0.0005315,120]
[358143390,1744765935711,-627.32,0.0005315,120]
[358143391,1744765935742,-500.0,0.0005315,120]
[358143392,1744765935774,-852.17,0.0005315,120]
[358143393,1744765935804,-818.1,0.0005315,120]
[358143394,1744765935834,-1000.0,0.0005315,120]
[358143395,1744765935864,-500.0,0.0005315,120]
[358143396,1744765935893,-500.0,0.0005315,120]
[358143397,1744765935923,-2769.0,0.0005315,35]
[358143398,1744765935951,-1231.0,0.0005315,120]
[358143399,1744765935981,-500.0,0.0005315,120]
[358143400,1744765936015,-500.0,0.0005315,120]
[358143401,1744765936048,-500.0,0.0005315,120]
[358143402,1744765936077,-852.23,0.0005315,120]
[358143403,1744765936108,-699.07,0.0005315,120]
[358143404,1744765936140,-500.0,0.0005315,120]
[358143405,1744765936170,-1912.27,0.0005315,120]
[358143406,1744765936202,-899.37,0.0005315,120]
[358143407,1744765936231,-500.0,0.0005315,120]
[358143408,1744765936262,-1831.65,0.0005315,120]
[358143409,1744765936292,-500.0,0.0005315,120]
[358143410,1744765936322,-1505.73,0.0005315,120]
[358143411,1744765936351,-535.1,0.0005315,120]
[358143412,1744765936380,-767.28,0.0005315,120]
[358143413,1744765936409,-687.0,0.0005315,120]
[358143414,1744765936438,-1013.49,0.0005315,120]
[358143415,1744765936467,-500.0,0.0005315,120]
[358143416,1744765936496,-1174.39,0.0005315,120]
[358143417,1744765936526,-1047.39,0.0005315,120]
[358143418,1744765936555,-826.32,0.0005315,120]
[358143419,1744765936585,-500.0,0.0005315,120]
[358143420,1744765936614,-150.0,0.00053162,30]
[358143421,1744765936642,-305.77080733,0.00053189,30]
[358143422,1744765936674,-214.54507832,0.00053189,30]
[358143423,1744765936705,-150.0,0.00053196,30]
[358143424,1744765936737,-500.0,0.00053205,90]
[358143425,1744765936768,-794.54,0.00053205,90]
[358143426,1744765936799,-150.0,0.00053205,120]
[358143427,1744765936828,-150.0,0.00053219,120]
[358143428,1744765936857,-150.0,0.0005322,30]
[358143429,1744765936887,-305.77080733,0.00053244,30]
[358143430,1744765936916,-214.54507832,0.00053244,30]
[358143431,1744765936959,-150.0,0.00053272,30]
[358143432,1744765936991,-150.0,0.00053272,30]
[358143433,1744765937020,-150.0,0.00053278,30]
[358143434,1744765937051,-2110.0,0.00053294,30]
[358143435,1744765937081,-305.77080733,0.000533,30]
[358143436,1744765937111,-214.54507832,0.000533,30]
[358143437,1744765937142,-150.0,0.00053337,30]
[358143438,1744765937172,-150.0,0.00053348,30]
[358143439,1744765937383,-305.77080733,0.00053355,30]
[358143440,1744765937415,-214.54507832,0.00053355,30]
[358143441,1744765937444,-150.0,0.00053395,30]
[358143442,1744765937480,-305.77080733,0.0005341,30]
[358143443,1744765937510,-214.54507832,0.0005341,30]
[358143444,1744765937541,-702.96,0.00053424,120]
[358143445,1744765937570,-1281.64,0.00053424,30]
[358143446,1744765937599,-2533.53,0.00053424,90]
[358143447,1744765937627,-563.05,0.00053424,120]
[358143448,1744765937655,-500.0,0.00053424,120]
[358143449,1744765937684,-627.32,0.00053424,120]
[358143450,1744765937713,-280.79293918,0.00053424,120]
[358143451,1744765937743,-852.17,0.00053424,120]
[358143452,1744765937772,-818.1,0.00053424,120]
[358143453,1744765937802,-1000.0,0.00053424,120]
[358143454,1744765937832,-500.0,0.00053424,120]
[358143455,1744765937864,-500.0,0.00053424,120]
[358143456,1744765937896,-2769.0,0.00053424,35]
[358143457,1744765937929,-1231.0,0.00053424,120]
[358143458,1744765937963,-500.0,0.00053424,120]
[358143459,1744765937996,-504.5,0.00053424,30]
[358143460,1744765938030,-500.0,0.00053424,120]
[358143461,1744765938070,-852.23,0.00053424,120]
[358143462,1744765938104,-699.07,0.00053424,120]
[358143463,1744765938139,-500.0,0.00053424,120]
[358143464,1744765938172,-1912.27,0.00053424,120]
[358143465,1744765938215,-899.37,0.00053424,120]
[358143466,1744765938252,-500.0,0.00053424,120]
[358143467,1744765938293,-1831.65,0.00053424,120]
[358143468,1744765938329,-500.0,0.00053424,120]
[358143469,1744765938364,-1505.73,0.00053424,120]
[358143470,1744765938398,-535.1,0.00053424,120]
[358143471,1744765938433,-767.28,0.00053424,120]
[358143472,1744765938468,-687.0,0.00053424,120]
[358143473,1744765938505,-1013.49,0.00053424,120]
[358143474,1744765938540,-500.0,0.00053424,120]
[358143475,1744765938575,-1174.39,0.00053424,120]
[358143476,1744765938611,-1047.39,0.00053424,120]
[358143477,1744765938646,-826.32,0.00053424,120]
[358143478,1744765938682,-500.0,0.00053424,120]
[358143479,1744765938721,-500.0,0.00053424,120]
[358143480,1744765938759,-150.0,0.00053424,30]
[358143481,1744765938797,-150.0,0.00053424,30]
[358143482,1744765938834,-150.0,0.00053453,30]
[358143483,1744765938871,-305.77080733,0.00053466,30]
[358143484,1744765938907,-214.54507832,0.00053466,30]
[358143485,1744765938942,-500.0,0.00053479,90]
[358143486,1744765938984,-5000.0,0.000535,120]
[358143487,1744765939022,-150.0,0.000535,30]
[358143488,1744765939060,-150.0,0.00053512,30]
[358143489,1744765939096,-305.77080733,0.00053521,30]
[358143490,1744765939134,-214.54507832,0.00053521,30]
[358143491,1744765939173,-150.0,0.00053542,120]
[358143492,1744765939209,-150.0,0.0005357,30]
[358143493,1744765939247,-305.77080733,0.00053576,30]
[358143494,1744765939284,-214.54507832,0.00053576,30]
[358143495,1744765939321,-150.0,0.00053576,30]
[358143496,1744765939357,-150.0,0.00053576,30]
[358143497,1744765939394,-1000.0,0.00053605,120]
[358143498,1744765939428,-150.0,0.00053628,30]
[358143499,1744765939463,-305.77080733,0.00053632,30]
[358143500,1744765939500,-214.54507832,0.00053632,30]
[358143501,1744765939534,-150.0,0.00053652,30]
[358143502,1744765939566,-150.0,0.00053686,30]
[358143503,1744765939598,-305.77080733,0.00053687,30]
[358143504,1744765939638,-214.54507832,0.00053687,30]
[358143505,1744765939673,-702.96,0.00053698,120]
[358143506,1744765939706,-1281.64,0.00053698,30]
[358143507,1744765939741,-2533.53,0.00053698,90]
[358143508,1744765939775,-563.05,0.00053698,120]
[358143509,1744765939810,-630.13520923,0.00053698,120]
[358143510,1744765939844,-627.32,0.00053698,120]
[358143511,1744765939877,-852.17,0.00053698,120]
[358143512,1744765939918,-818.1,0.00053698,120]
[358143513,1744765939954,-1000.0,0.00053698,120]
[358143514,1744765939990,-500.0,0.00053698,120]
[358143515,1744765940026,-383.61063005,0.00053698,120]
[358143516,1744765940065,-2769.0,0.00053698,35]
[358143517,1744765940100,-1231.0,0.00053698,120]
[358143518,1744765940133,-500.0,0.00053698,120]
[358143519,1744765940166,-500.0,0.00053698,120]
[358143520,1744765940196,-852.23,0.00053698,120]
[358143521,1744765940230,-699.07,0.00053698,120]
[358143522,1744765940261,-625.8979918,0.00053698,120]
[358143523,1744765940292,-1912.27,0.00053698,120]
[358143524,1744765940324,-899.37,0.00053698,120]
[358143525,1744765940356,-500.0,0.00053698,120]
[358143526,1744765940389,-1831.65,0.00053698,120]
[358143527,1744765940419,-500.0,0.00053698,120]
[358143528,1744765940450,-1505.73,0.00053698,120]
[358143529,1744765940482,-535.1,0.00053698,120]
[358143530,1744765940512,-767.28,0.00053698,120]
[358143531,1744765940543,-687.0,0.00053698,120]
[358143532,1744765940573,-1013.49,0.00053698,120]
[358143533,1744765940603,-1174.39,0.00053698,120]
[358143534,1744765940820,-1047.39,0.00053698,120]
[358143535,1744765940854,-826.32,0.00053698,120]
[358143536,1744765940887,-500.0,0.00053698,120]
[358143537,1744765940919,-2079.9573914,0.000537,30]
[358143538,1744765940950,-989.84351889,0.00053708,120]
[358143539,1744765940982,-150.0,0.00053729,30]
[358143540,1744765941013,-150.0,0.00053729,30]
[358143541,1744765941045,-305.77080733,0.00053742,30]
[358143542,1744765941074,-214.54507832,0.00053742,30]
[358143543,1744765941104,-150.0,0.00053745,30]
[358143544,1744765941134,-500.0,0.00053753,90]
[358143545,1744765941163,-2110.0,0.00053794,30]
[358143546,1744765941191,-500.0,0.00053794,120]
[358143547,1744765941221,-500.0,0.00053794,120]
[358143548,1744765941251,-500.0,0.00053794,120]
[358143549,1744765941279,-500.0,0.00053794,120]
[358143550,1744765941307,-500.0,0.00053794,120]
[358143551,1744765941336,-310.21,0.00053794,120]
[358143552,1744765941364,-500.0,0.00053794,120]
[358143553,1744765941392,-500.0,0.00053794,120]
[358143554,1744765941421,-500.0,0.00053794,120]
[358143555,1744765941453,-500.0,0.00053794,120]
[358143556,1744765941488,-500.0,0.00053794,120]
[358143557,1744765941519,-500.0,0.00053794,120]
[358143558,1744765941550,-510.31,0.00053794,120]
[358143559,1744765941579,-305.77080733,0.00053798,30]
[358143560,1744765941609,-214.54507832,0.00053798,30]
[358143561,1744765941638,-150.0,0.00053803,30]
[358143562,1744765941668,-150.0,0.00053805,30]
[358143563,1744765941697,-305.77080733,0.00053853,30]
[358143564,1744765941729,-214.54507832,0.00053853,30]
[358143565,1744765941763,-150.0,0.00053861,30]
[358143566,1744765941795,-150.0,0.00053881,30]
[358143567,1744765941826,-150.0,0.00053881,30]
[358143568,1744765941860,-150.0,0.00053893,120]
[358143569,1744765941892,-1313806.87367703,0.000539,30]
[358143570,1744765941923,-305.77080733,0.00053908,30]
[358143571,1744765941960,-214.54507832,0.00053908,30]
[358143572,1744765941991,-150.0,0.0005392,30]
[358143573,1744765942023,-150.0,0.00053938,120]
[358143574,1744765942055,-150.0,0.00053957,30]
[358143575,1744765942086,-305.77080733,0.00053964,30]
[358143576,1744765942117,-214.54507832,0.00053964,30]
[358143577,1744765942148,-150.0,0.00053969,120]
[358143578,1744765942179,-500.0,0.00053972,120]
[358143579,1744765942211,-702.96,0.00053972,120]
[358143580,1744765942241,-1281.64,0.00053972,30]
[358143581,1744765942271,-2533.53,0.00053972,90]
[358143582,1744765942300,-563.05,0.00053972,120]
[358143583,1744765942329,-627.32,0.00053972,120]
[358143584,1744765942363,-852.17,0.00053972,120]
[358143585,1744765942392,-818.1,0.00053972,120]
[358143586,1744765942422,-1068.09637069,0.00053972,120]
[358143587,1744765942452,-500.0,0.00053972,120]
[358143588,1744765942483,-2769.0,0.00053972,35]
[358143589,1744765942512,-1231.0,0.00053972,120]
[358143590,1744765942543,-500.0,0.00053972,120]
[358143591,1744765942572,-504.5,0.00053972,32]
[358143592,1744765942602,-643.14,0.00053972,120]
[358143593,1744765942632,-699.07,0.00053972,120]
[358143594,1744765942662,-1912.27,0.00053972,120]
[358143595,1744765942693,-899.37,0.00053972,120]
[358143596,1744765942726,-500.0,0.00053972,120]
[358143597,1744765942761,-1831.65,0.00053972,120]
[358143598,1744765942794,-500.0,0.00053972,120]
[358143599,1744765942825,-1505.73,0.00053972,120]
[358143600,1744765942854,-535.1,0.00053972,120]
[358143601,1744765942884,-767.28,0.00053972,120]
[358143602,1744765942915,-687.0,0.00053972,120]
[358143603,1744765942946,-1013.49,0.00053972,120]
[358143604,1744765942977,-1174.39,0.00053972,120]
[358143605,1744765943008,-1047.39,0.00053972,120]
[358143606,1744765943040,-826.32,0.00053972,120]
[358143607,1744765943077,-180.51,0.00053972,120]
[358143608,1744765943109,-150.0,0.00053978,30]
[358143609,1744765943141,-10109.83842372,0.00053988,120]
[358143610,1744765943173,-91795.76,0.00054,60]
[358143611,1744765943207,-2000.0,0.00054,120]
[358143612,1744765943243,-1000000.0,0.00054,120]
[358143613,1744765943279,-1000000.0,0.00054,120]
[358143614,1744765943315,-1000000.0,0.00054,120]
[358143615,1744765943350,-361138.45034218,0.00054,120]
[358143616,1744765949098,-2300.0,0.00040711,30]
[358143617,1744765949133,-2300.0,0.00041209,30]
[358143618,1744765949165,-2300.0,0.00041496,30]
[358143619,1744765949196,-2300.0,0.0004155,30]
[358143620,1744765949229,-2300.0,0.00042121,30]
[358143621,1744765949260,-2300.0,0.00042215,30]
[358143622,1744765949292,-2300.0,0.00042813,30]
[358143623,1744765949323,-2300.0,0.00042978,30]
[358143624,1744765949377,-2300.0,0.00043547,30]
[358143625,1744765949407,-2300.0,0.00043869,30]
[358143626,1744765949437,-2300.0,0.00043957,30]